fUSD/lending_fUSD_20250609
["ID","MTS","AMOUNT","RATE_DAILY","PERIOD"]
[365161903,1749505860523,-170.53758,0.000194,2]
[365161904,1749505860532,-151.0,0.000194,2]
[365161905,1749505860541,-356.936612,0.000194,2]
[365161906,1749505860551,-356.936612,0.000194,2]
[365161907,1749505860561,-650.471266,0.000194,2]
[365161908,1749505860570,-650.471266,0.000194,2]
[365161909,1749505860579,-151.0,0.000194,2]
[365161910,1749505860589,-202.368615,0.000194,2]
[365161911,1749505860599,-202.368615,0.000194,2]
[365161912,1749505860608,-151.0,0.000194,2]
[365161913,1749505860618,-157.628526,0.000194,2]
[365161914,1749505860627,-157.628526,0.000194,2]
[365161915,1749505860636,-299.02,0.000194,2]
[365161916,1749505860646,-299.02,0.000194,2]
[365161917,1749505860655,-151.0,0.000194,2]
[365161918,1749505860665,-151.0,0.000194,2]
[365161919,1749505860675,-151.0,0.000194,2]
[365161920,1749505860684,-151.0,0.000194,2]
[365161921,1749505860693,-151.0,0.000194,2]
[365161922,1749505860703,-188.18891,0.000194,2]
[365161923,1749505860712,-188.18891,0.000194,2]
[365161924,1749505860721,-324.492742,0.000194,2]
[365161925,1749505860731,-324.492742,0.000194,2]
[365161926,1749505860740,-214.452768,0.000194,2]
[365161927,1749505860749,-214.452776,0.000194,2]
[365161928,1749505860759,-395.755522,0.000194,2]
[365161929,1749505860768,-151.0,0.000194,2]
[365161930,1749505860777,-151.0,0.000194,2]
[365161931,1749505860786,-151.0,0.000194,2]
[365161932,1749505860796,-151.0,0.000194,2]
[365161933,1749505860805,-151.0,0.000194,2]
[365161934,1749505860814,-151.0,0.000194,2]
[365161935,1749505860824,-151.0,0.000194,2]
[365161936,1749505860833,-221.620575,0.000194,2]
[365161937,1749505860843,-221.620575,0.000194,2]
[365161938,1749505860852,-1253.136228,0.000194,2]
[365161939,1749505860862,-1253.13623256,0.000194,2]
[365161940,1749505860873,-353.126917,0.000194,2]
[365161941,1749505860885,-353.126917,0.000194,2]
[365161942,1749505860895,-313.562792,0.000194,2]
[365161943,1749505860906,-313.562792,0.000194,2]
[365161944,1749505860916,-151.0,0.000194,2]
[365161945,1749505860926,-2803.23235029,0.000194,2]
[365161946,1749505860936,-151.0,0.000194,2]
[365161947,1749505860946,-151.0,0.000194,2]
[365161948,1749505860957,-219.278864,0.000194,2]
[365161949,1749505860968,-219.278858,0.000194,2]
[365161950,1749505860978,-151.0,0.000194,2]
[365161951,1749505860987,-892.141764,0.000194,2]
[365161952,1749505860998,-892.141764,0.000194,2]
[365161953,1749505861009,-151.0,0.000194,2]
[365161954,1749505861019,-164.586808,0.000194,2]
[365161955,1749505861030,-164.586808,0.000194,2]
[365161956,1749505861039,-207.435276,0.000194,2]
[365161957,1749505861049,-207.435276,0.000194,2]
[365161958,1749505861059,-151.0,0.000194,2]
[365161959,1749505861069,-271.418806,0.000194,2]
[365161960,1749505861079,-271.418806,0.000194,2]
[365161961,1749505861089,-314.25261,0.000194,2]
[365161962,1749505861099,-151.0,0.000194,2]
[365161963,1749505861108,-314.25261,0.000194,2]
[365161964,1749505861119,-151.0,0.000194,2]
[365161965,1749505861130,-303.804144,0.000194,2]
[365161966,1749505861140,-303.804144,0.000194,2]
[365161967,1749505861149,-151.0,0.000194,2]
[365161968,1749505861159,-160.804686,0.000194,2]
[365161969,1749505861169,-160.804686,0.000194,2]
[365161970,1749505861179,-151.0,0.000194,2]
[365161971,1749505861189,-216.0635,0.000194,2]
[365161972,1749505861199,-154.670046,0.000194,2]
[365161973,1749505861209,-154.670046,0.000194,2]
[365161974,1749505861220,-166.2727,0.000194,2]
[365161975,1749505861230,-166.2727,0.000194,2]
[365161976,1749505861239,-820.692982,0.000194,2]
[365161977,1749505861250,-820.692982,0.000194,2]
[365161978,1749505861260,-2014.858368,0.000194,2]
[365161979,1749505861269,-2014.858368,0.000194,2]
[365161980,1749505861279,-364.593156,0.000194,2]
[365161981,1749505861288,-277.714419,0.000194,2]
[365161982,1749505861298,-151.0,0.000194,2]
[365161983,1749505861308,-1461.507717,0.000194,2]
[365161984,1749505861317,-364.593156,0.000194,2]
[365161985,1749505861328,-277.714419,0.000194,2]
[365161986,1749505861337,-151.0,0.000194,2]
[365161987,1749505861346,-1461.507717,0.000194,2]
[365161988,1749505861356,-151.0,0.000194,2]
[365161989,1749505861366,-241.164682,0.000194,2]
[365161990,1749505861375,-151.0,0.000194,2]
[365161991,1749505861385,-1010.666632,0.000194,2]
[365161992,1749505861395,-151.0,0.000194,2]
[365161993,1749505861405,-1010.666632,0.000194,2]
[365161994,1749505861415,-152.754695,0.000194,2]
[365161995,1749505861425,-151.0,0.000194,2]
[365161996,1749505861435,-151.0,0.000194,2]
[365161997,1749505861445,-185.416375,0.000194,2]
[365161998,1749505861455,-185.416375,0.000194,2]
[365161999,1749505861464,-151.0,0.000194,2]
[365162000,1749505861474,-151.0,0.000194,2]
[365162001,1749505861484,-151.0,0.000194,2]
[365162002,1749505861493,-151.0,0.000194,2]
[365162003,1749505861503,-849.586945,0.000194,2]
[365162004,1749505861512,-849.586945,0.000194,2]
[365162005,1749505861522,-151.0,0.000194,2]
[365162006,1749505861532,-197.131426,0.000194,2]
[365162007,1749505861542,-197.131426,0.000194,2]
[365162008,1749505861552,-151.0,0.000194,2]
[365162009,1749505861565,-151.0,0.000194,2]
[365162010,1749505861576,-151.0,0.000194,2]
[365162011,1749505861586,-179.74098,0.000194,2]
[365162012,1749505861596,-179.74098,0.000194,2]
[365162013,1749505861606,-219.308609,0.000194,2]
[365162014,1749505861616,-219.308609,0.000194,2]
[365162015,1749505861625,-151.0,0.000194,2]
[365162016,1749505861635,-151.0,0.000194,2]
[365162017,1749505861645,-151.0,0.000194,2]
[365162018,1749505861655,-151.0,0.000194,2]
[365162019,1749505861666,-208.883468,0.000194,2]
[365162020,1749505861676,-151.0,0.000194,2]
[365162021,1749505861686,-154.942484,0.000194,2]
[365162022,1749505861696,-154.942484,0.000194,2]
[365162023,1749505861714,-869.839935,0.000194,2]
[365162024,1749505861724,-869.839935,0.000194,2]
[365162025,1749505861734,-151.0,0.000194,2]
[365162026,1749505861744,-151.0,0.000194,2]
[365162027,1749505861754,-151.0,0.000194,2]
[365162028,1749505861764,-1700.0,0.000194,7]
[365162029,1749505861775,-1030.343412,0.000194,2]
[365162030,1749505861785,-1030.343412,0.000194,2]
[365162031,1749505861794,-428.618444,0.000194,2]
[365162032,1749505861805,-428.618444,0.000194,2]
[365162033,1749505861816,-151.0,0.000194,2]
[365162034,1749505861827,-151.0,0.000194,2]
[365162035,1749505861838,-178.889108,0.000194,2]
[365162036,1749505861848,-151.0,0.000194,2]
[365162037,1749505861858,-178.889108,0.000194,2]
[365162038,1749505861868,-151.0,0.000194,2]
[365162039,1749505861884,-295.997184,0.000194,2]
[365162040,1749505861895,-151.0,0.000194,2]
[365162041,1749505861904,-10000.0,0.000194,2]
[365162042,1749505861915,-10000.0,0.000194,2]
[365162043,1749505861926,-151.0,0.000194,2]
[365162044,1749505861937,-1614.654427,0.000194,2]
[365162045,1749505861947,-629.891401,0.000194,2]
[365162046,1749505861960,-629.891401,0.000194,2]
[365162047,1749505861970,-151.698972,0.000194,2]
[365162048,1749505861980,-1514.643744,0.000194,2]
[365162049,1749505861991,-151.698972,0.000194,2]
[365162050,1749505862001,-1514.643744,0.000194,2]
[365162051,1749505862011,-3663.446558,0.000194,2]
[365162052,1749505862021,-3663.446558,0.000194,2]
[365162053,1749505862030,-151.0,0.000194,2]
[365162054,1749505862040,-225.45172816,0.00019403,10]
[365162055,1749505862050,-170.96828815,0.00019413,2]
[365162056,1749505862060,-664.18404425,0.00019417,2]
[365162057,1749505862071,-2985.0,0.00019425,2]
[365162058,1749505862082,-919.0,0.00019425,2]
[365162059,1749505862092,-5841.07129857,0.00019439,2]
[365162060,1749505862102,-664.18404425,0.00019452,2]
[365162061,1749505862112,-2985.0,0.00019452,2]
[365162062,1749505862123,-919.0,0.00019452,2]
[365162063,1749505862133,-334.47662734,0.00019452,2]
[365162064,1749505862143,-151.0,0.00019478,2]
[365162065,1749505862154,-188.18891,0.00019478,2]
[365162066,1749505862164,-188.188902,0.00019478,2]
[365162067,1749505862174,-2985.0,0.00019479,2]
[365162068,1749505862184,-919.0,0.00019479,2]
[365162069,1749505862194,-4909.27822583,0.0001948,2]
[365162070,1749505862205,-215.69762739,0.00019483,2]
[365162071,1749505862215,-664.18404425,0.00019486,2]
[365162072,1749505862226,-571.17042486,0.00019489,2]
[365162073,1749505862241,-151.0,0.0001949,2]
[365162074,1749505862251,-324.492742,0.0001949,2]
[365162075,1749505862261,-324.492738,0.0001949,2]
[365162076,1749505862271,-151.0,0.0001949,2]
[365162077,1749505862281,-650.471266,0.00019491,2]
[365162078,1749505862291,-650.471266,0.00019491,2]
[365162079,1749505862301,-151.0,0.00019491,2]
[365162080,1749505862311,-202.368615,0.00019491,2]
[365162081,1749505862321,-202.368615,0.00019491,2]
[365162082,1749505862331,-157.628526,0.00019491,2]
[365162083,1749505862342,-157.628526,0.00019491,2]
[365162084,1749505862353,-151.0,0.00019492,2]
[365162085,1749505862366,-299.02,0.00019492,2]
[365162086,1749505862376,-299.02,0.00019492,2]
[365162087,1749505862386,-151.0,0.00019492,2]
[365162088,1749505862396,-235.087454,0.00019492,2]
[365162089,1749505862407,-955.03,0.00019492,2]
[365162090,1749505862416,-5700.11,0.00019492,2]
[365162091,1749505862426,-170.53758,0.00019493,2]
[365162092,1749505862436,-170.537582,0.00019493,2]
[365162093,1749505862446,-151.0,0.00019493,2]
[365162094,1749505862457,-356.936612,0.00019493,2]
[365162095,1749505862466,-356.936612,0.00019493,2]
[365162096,1749505862477,-299.02,0.00019493,2]
[365162097,1749505862487,-299.02,0.00019493,2]
[365162098,1749505862497,-151.0,0.00019493,2]
[365162099,1749505862507,-1809.0987587,0.00019493,2]
[365162100,1749505862516,-140730.106165,0.00019493,2]
[365162101,1749505862526,-4490.5482987,0.00019493,2]
[365162102,1749505862535,-12022.3816826,0.00019493,2]
[365162103,1749505862545,-26247.3615599,0.00019493,2]
[365162104,1749505862554,-1716.70696,0.000195,2]
[365162105,1749505862564,-300.0,0.000195,7]
[365162106,1749505862574,-151.0,0.00019504,2]
[365162107,1749505862584,-500.0,0.00019505,2]
[365162108,1749505862595,-500.0,0.00019505,2]
[365162109,1749505862605,-955.03,0.00019505,2]
[365162110,1749505862615,-955.03,0.00019505,2]
[365162111,1749505862625,-5700.11,0.00019505,2]
[365162112,1749505862636,-5700.11,0.00019505,2]
[365162113,1749505862647,-240.71727886,0.00019506,2]
[365162114,1749505862657,-356.936612,0.00019506,2]
[365162115,1749505862668,-356.936612,0.00019506,2]
[365162116,1749505862678,-356.936612,0.00019506,2]
[365162117,1749505862688,-356.936612,0.00019506,2]
[365162118,1749505862699,-650.471266,0.00019506,2]
[365162119,1749505862709,-650.471259,0.00019506,2]
[365162120,1749505862720,-202.368615,0.00019506,2]
[365162121,1749505862729,-202.368611,0.00019506,2]
[365162122,1749505862739,-151.0,0.00019506,2]
[365162123,1749505862749,-157.628526,0.00019506,2]
[365162124,1749505862759,-157.628536,0.00019506,2]
[365162125,1749505862770,-395.755522,0.00019506,2]
[365162126,1749505862780,-395.755524,0.00019506,2]
[365162127,1749505862790,-151.0,0.00019506,2]
[365162128,1749505862799,-151.0,0.00019506,2]
[365162129,1749505862810,-185.081108,0.00019506,2]
[365162130,1749505862820,-298.963668,0.00019506,2]
[365162131,1749505862833,-151.0,0.00019506,2]
[365162132,1749505862844,-151.0,0.00019506,2]
[365162133,1749505862854,-151.0,0.00019506,2]
[365162134,1749505862864,-151.0,0.00019506,2]
[365162135,1749505862876,-151.0,0.00019506,2]
[365162136,1749505862887,-151.0,0.00019506,2]
[365162137,1749505862897,-221.620575,0.00019506,2]
[365162138,1749505862907,-221.620575,0.00019506,2]
[365162139,1749505862918,-221.620575,0.00019506,2]
[365162140,1749505862929,-221.620576,0.00019506,2]
[365162141,1749505862939,-353.126917,0.00019506,2]
[365162142,1749505862950,-353.126917,0.00019506,2]
[365162143,1749505862962,-353.126917,0.00019506,2]
[365162144,1749505862974,-353.126909,0.00019506,2]
[365162145,1749505862984,-313.562792,0.00019506,2]
[365162146,1749505862994,-313.562792,0.00019506,2]
[365162147,1749505863005,-313.562792,0.00019506,2]
[365162148,1749505863015,-313.56279,0.00019506,2]
[365162149,1749505863026,-190.968935,0.00019506,2]
[365162150,1749505863038,-151.0,0.00019506,2]
[365162151,1749505863048,-230.998621,0.00019506,2]
[365162152,1749505863060,-151.0,0.00019506,2]
[365162153,1749505863071,-151.0,0.00019506,2]
[365162154,1749505863083,-151.0,0.00019506,2]
[365162155,1749505863333,-151.0,0.00019506,2]
[365162156,1749505863344,-892.141764,0.00019506,2]
[365162157,1749505863354,-892.141764,0.00019506,2]
[365162158,1749505863365,-892.141764,0.00019506,2]
[365162159,1749505863375,-892.141763,0.00019506,2]
[365162160,1749505863386,-151.0,0.00019506,2]
[365162161,1749505863399,-151.0,0.00019506,2]
[365162162,1749505863409,-164.586808,0.00019506,2]
[365162163,1749505863419,-164.586808,0.00019506,2]
[365162164,1749505863429,-164.586808,0.00019506,2]
[365162165,1749505863439,-164.58681,0.00019506,2]
[365162166,1749505863448,-207.435276,0.00019506,2]
[365162167,1749505863459,-207.435276,0.00019506,2]
[365162168,1749505863468,-207.435276,0.00019506,2]
[365162169,1749505863479,-151.0,0.00019506,2]
[365162170,1749505863493,-207.435274,0.00019506,2]
[365162171,1749505863504,-271.418806,0.00019506,2]
[365162172,1749505863515,-271.418806,0.00019506,2]
[365162173,1749505863526,-271.418806,0.00019506,2]
[365162174,1749505863537,-271.41881,0.00019506,2]
[365162175,1749505863547,-314.25261,0.00019506,2]
[365162176,1749505863557,-314.25261,0.00019506,2]
[365162177,1749505863567,-151.0,0.00019506,2]
[365162178,1749505863578,-151.0,0.00019506,2]
[365162179,1749505863588,-314.25261,0.00019506,2]
[365162180,1749505863599,-314.252609,0.00019506,2]
[365162181,1749505863610,-151.0,0.00019506,2]
[365162182,1749505863620,-303.804144,0.00019506,2]
[365162183,1749505863629,-303.804144,0.00019506,2]
[365162184,1749505863640,-303.804144,0.00019506,2]
[365162185,1749505863651,-303.804139,0.00019506,2]
[365162186,1749505863661,-151.0,0.00019506,2]
[365162187,1749505863672,-160.804686,0.00019506,2]
[365162188,1749505863682,-160.804686,0.00019506,2]
[365162189,1749505863693,-160.804686,0.00019506,2]
[365162190,1749505863703,-160.804679,0.00019506,2]
[365162191,1749505863714,-274.445893,0.00019506,2]
[365162192,1749505863725,-230.138801,0.00019506,2]
[365162193,1749505863736,-151.0,0.00019506,2]
[365162194,1749505863747,-470.0,0.00019506,2]
[365162195,1749505863757,-490.0,0.00019506,2]
[365162196,1749505863768,-490.0,0.00019506,2]
[365162197,1749505863778,-490.0,0.00019506,2]
[365162198,1749505863788,-482.65171895,0.00019506,2]
[365162199,1749505863799,-154.670046,0.00019506,2]
[365162200,1749505863810,-154.670046,0.00019506,2]
[365162201,1749505863821,-490.0,0.00019506,2]
[365162202,1749505863831,-490.0,0.00019506,2]
[365162203,1749505863841,-575.81799642,0.00019506,2]
[365162204,1749505863851,-166.2727,0.00019506,2]
[365162205,1749505863862,-470.0,0.00019506,2]
[365162206,1749505863875,-166.2727,0.00019506,2]
[365162207,1749505863885,-820.692982,0.00019506,2]
[365162208,1749505863895,-490.0,0.00019506,2]
[365162209,1749505863908,-820.692982,0.00019506,2]
[365162210,1749505863918,-490.0,0.00019506,2]
[365162211,1749505863928,-490.0,0.00019506,2]
[365162212,1749505863939,-490.0,0.00019506,2]
[365162213,1749505863949,-648.08,0.00019506,2]
[365162214,1749505863960,-490.0,0.00019506,2]
[365162215,1749505863971,-490.0,0.00019506,2]
[365162216,1749505863982,-723.43,0.00019506,2]
[365162217,1749505863992,-490.0,0.00019506,2]
[365162218,1749505864002,-251.86,0.00019506,2]
[365162219,1749505864013,-2014.858368,0.00019506,2]
[365162220,1749505864023,-2014.858368,0.00019506,2]
[365162221,1749505864034,-364.593156,0.00019506,2]
[365162222,1749505864045,-151.0,0.00019506,2]
[365162223,1749505864055,-277.714419,0.00019506,2]
[365162224,1749505864065,-1461.507717,0.00019506,2]
[365162225,1749505864077,-364.593156,0.00019506,2]
[365162226,1749505864087,-277.714419,0.00019506,2]
[365162227,1749505864098,-292.348192,0.00019506,2]
[365162228,1749505864109,-490.0,0.00019506,2]
[365162229,1749505864119,-1461.507717,0.00019506,2]
[365162230,1749505864130,-490.0,0.00019506,2]
[365162231,1749505864140,-490.0,0.00019506,2]
[365162232,1749505864151,-403.07,0.00019506,2]
[365162233,1749505864161,-151.0,0.00019506,2]
[365162234,1749505864171,-490.0,0.00019506,2]
[365162235,1749505864182,-490.0,0.00019506,2]
[365162236,1749505864192,-649.02,0.00019506,2]
[365162237,1749505864203,-490.0,0.00019506,2]
[365162238,1749505864213,-298.867228,0.00019506,2]
[365162239,1749505864224,-490.0,0.00019506,2]
[365162240,1749505864235,-490.0,0.00019506,2]
[365162241,1749505864246,-1010.666632,0.00019506,2]
[365162242,1749505864257,-1010.666632,0.00019506,2]
[365162243,1749505864267,-151.0,0.00019506,2]
[365162244,1749505864277,-1010.666632,0.00019506,2]
[365162245,1749505864287,-1010.666641,0.00019506,2]
[365162246,1749505864298,-480.0,0.00019506,2]
[365162247,1749505864309,-346.29,0.00019506,2]
[365162248,1749505864319,-490.0,0.00019506,2]
[365162249,1749505864332,-151.0,0.00019506,2]
[365162250,1749505864341,-490.0,0.00019506,2]
[365162251,1749505864351,-490.0,0.00019506,2]
[365162252,1749505864361,-490.0,0.00019506,2]
[365162253,1749505864371,-460.0,0.00019506,2]
[365162254,1749505864382,-650.01,0.00019506,2]
[365162255,1749505864391,-490.0,0.00019506,2]
[365162256,1749505864402,-680.92,0.00019506,2]
[365162257,1749505864412,-151.0,0.00019506,2]
[365162258,1749505864422,-490.0,0.00019506,2]
[365162259,1749505864432,-185.416375,0.00019506,2]
[365162260,1749505864443,-490.0,0.00019506,2]
[365162261,1749505864452,-185.416375,0.00019506,2]
[365162262,1749505864462,-544.47,0.00019506,2]
[365162263,1749505864472,-151.0,0.00019506,2]
[365162264,1749505864482,-490.0,0.00019506,2]
[365162265,1749505864492,-1112.76,0.00019506,2]
[365162266,1749505864502,-1616.79,0.00019506,2]
[365162267,1749505864512,-206.113689,0.00019506,2]
[365162268,1749505864522,-151.0,0.00019506,2]
[365162269,1749505864532,-490.0,0.00019506,2]
[365162270,1749505864542,-490.0,0.00019506,2]
[365162271,1749505864551,-151.0,0.00019506,2]
[365162272,1749505864562,-849.586945,0.00019506,2]
[365162273,1749505864571,-490.0,0.00019506,2]
[365162274,1749505864582,-539.54,0.00019506,2]
[365162275,1749505864592,-598.72,0.00019506,2]
[365162276,1749505864602,-849.586945,0.00019506,2]
[365162277,1749505864612,-490.0,0.00019506,2]
[365162278,1749505864622,-490.0,0.00019506,2]
[365162279,1749505864632,-1190.05,0.00019506,2]
[365162280,1749505864641,-727.01,0.00019506,2]
[365162281,1749505864651,-490.0,0.00019506,2]
[365162282,1749505864661,-560.8,0.00019506,2]
[365162283,1749505864670,-490.0,0.00019506,2]
[365162284,1749505864680,-612.19,0.00019506,2]
[365162285,1749505864691,-490.0,0.00019506,2]
[365162286,1749505864700,-862.54,0.00019506,2]
[365162287,1749505864710,-490.0,0.00019506,2]
[365162288,1749505864719,-644.48,0.00019506,2]
[365162289,1749505864729,-151.0,0.00019506,2]
[365162290,1749505864739,-490.0,0.00019506,2]
[365162291,1749505864748,-490.0,0.00019506,2]
[365162292,1749505864758,-593.15,0.00019506,2]
[365162293,1749505864767,-197.131426,0.00019506,2]
[365162294,1749505864777,-490.0,0.00019506,2]
[365162295,1749505864787,-812.69,0.00019506,2]
[365162296,1749505864797,-635.87,0.00019506,2]
[365162297,1749505864807,-197.131426,0.00019506,2]
[365162298,1749505864816,-640.28,0.00019506,2]
[365162299,1749505864827,-490.0,0.00019506,2]
[365162300,1749505864837,-151.0,0.00019506,2]
[365162301,1749505864847,-525.65,0.00019506,2]
[365162302,1749505864857,-490.0,0.00019506,2]
[365162303,1749505864866,-490.0,0.00019506,2]
[365162304,1749505864877,-490.0,0.00019506,2]
[365162305,1749505864887,-151.0,0.00019506,2]
[365162306,1749505864897,-913.45,0.00019506,2]
[365162307,1749505864906,-490.0,0.00019506,2]
[365162308,1749505864915,-470.0,0.00019506,2]
[365162309,1749505864926,-669.78,0.00019506,2]
[365162310,1749505864936,-490.0,0.00019506,2]
[365162311,1749505864946,-490.0,0.00019506,2]
[365162312,1749505864957,-181.61021869,0.00019506,2]
[365162313,1749505864967,-1345.96,0.00019506,2]
[365162314,1749505864976,-151.0,0.00019506,2]
[365162315,1749505864985,-490.0,0.00019506,2]
[365162316,1749505864995,-490.0,0.00019506,2]
[365162317,1749505865005,-519.16,0.00019506,2]
[365162318,1749505865014,-546.55048237,0.00019506,2]
[365162319,1749505865023,-1075.45,0.00019506,2]
[365162320,1749505865033,-490.0,0.00019506,2]
[365162321,1749505865042,-490.0,0.00019506,2]
[365162322,1749505865053,-490.0,0.00019506,2]
[365162323,1749505865062,-490.0,0.00019506,2]
[365162324,1749505865072,-490.0,0.00019506,2]
[365162325,1749505865081,-490.0,0.00019506,2]
[365162326,1749505865090,-490.0,0.00019506,2]
[365162327,1749505865100,-490.0,0.00019506,2]
[365162328,1749505865109,-1452.8,0.00019506,2]
[365162329,1749505865118,-490.0,0.00019506,2]
[365162330,1749505865128,-490.0,0.00019506,2]
[365162331,1749505865138,-530.11,0.00019506,2]
[365162332,1749505865147,-179.74098,0.00019506,2]
[365162333,1749505865157,-179.74098,0.00019506,2]
[365162334,1749505865167,-490.0,0.00019506,2]
[365162335,1749505865176,-883.83,0.00019506,2]
[365162336,1749505865185,-1078.8,0.00019506,2]
[365162337,1749505865195,-569.66,0.00019506,2]
[365162338,1749505865206,-490.0,0.00019506,2]
[365162339,1749505865215,-490.0,0.00019506,2]
[365162340,1749505865224,-490.0,0.00019506,2]
[365162341,1749505865235,-609.31,0.00019506,2]
[365162342,1749505865245,-1035.11,0.00019506,2]
[365162343,1749505865255,-490.0,0.00019506,2]
[365162344,1749505865264,-219.308609,0.00019506,2]
[365162345,1749505865274,-490.0,0.00019506,2]
[365162346,1749505865284,-490.0,0.00019506,2]
[365162347,1749505865293,-490.0,0.00019506,2]
[365162348,1749505865303,-219.308609,0.00019506,2]
[365162349,1749505865313,-245.71176165,0.00019506,2]
[365162350,1749505865323,-886.66,0.00019506,2]
[365162351,1749505865332,-793.61,0.00019506,2]
[365162352,1749505865342,-562.05,0.00019506,2]
[365162353,1749505865352,-1229.55,0.00019506,2]
[365162354,1749505865361,-151.0,0.00019506,2]
[365162355,1749505865371,-490.0,0.00019506,2]
[365162356,1749505865380,-490.0,0.00019506,2]
[365162357,1749505865391,-151.0,0.00019506,2]
[365162358,1749505865401,-490.0,0.00019506,2]
[365162359,1749505865410,-490.0,0.00019506,2]
[365162360,1749505865419,-642.35,0.00019506,2]
[365162361,1749505865428,-490.0,0.00019506,2]
[365162362,1749505865438,-490.0,0.00019506,2]
[365162363,1749505865447,-490.0,0.00019506,2]
[365162364,1749505865457,-845.5,0.00019506,2]
[365162365,1749505865466,-490.0,0.00019506,2]
[365162366,1749505865475,-490.0,0.00019506,2]
[365162367,1749505865485,-490.0,0.00019506,2]
[365162368,1749505865494,-1346.48,0.00019506,2]
[365162369,1749505865504,-170.49955775,0.00019506,2]
[365162370,1749505865514,-631.12,0.00019506,2]
[365162371,1749505865523,-490.0,0.00019506,2]
[365162372,1749505865534,-490.0,0.00019506,2]
[365162373,1749505865544,-490.0,0.00019506,2]
[365162374,1749505865555,-1081.67,0.00019506,2]
[365162375,1749505865564,-151.0,0.00019506,2]
[365162376,1749505865574,-534.09,0.00019506,2]
[365162377,1749505865583,-151.0,0.00019506,2]
[365162378,1749505865593,-1268.45,0.00019506,2]
[365162379,1749505865603,-675.92,0.00019506,2]
[365162380,1749505865613,-514.79,0.00019506,2]
[365162381,1749505865623,-490.0,0.00019506,2]
[365162382,1749505865632,-943.36,0.00019506,2]
[365162383,1749505865642,-490.0,0.00019506,2]
[365162384,1749505865652,-1014.55,0.00019506,2]
[365162385,1749505865662,-1337.57,0.00019506,2]
[365162386,1749505865671,-1069.08,0.00019506,2]
[365162387,1749505865680,-490.0,0.00019506,2]
[365162388,1749505865689,-751.43,0.00019506,2]
[365162389,1749505865698,-632.19,0.00019506,2]
[365162390,1749505865707,-1077.57,0.00019506,2]
[365162391,1749505865716,-621.91,0.00019506,2]
[365162392,1749505865726,-648.18,0.00019506,2]
[365162393,1749505865807,-713.89,0.00019506,2]
[365162394,1749505865816,-559.96216091,0.00019506,2]
[365162395,1749505865826,-490.0,0.00019506,2]
[365162396,1749505865835,-554.11,0.00019506,2]
[365162397,1749505865844,-558.76,0.00019506,2]
[365162398,1749505865854,-1273.2,0.00019506,2]
[365162399,1749505865863,-151.0,0.00019506,2]
[365162400,1749505865872,-490.0,0.00019506,2]
[365162401,1749505865886,-783.19,0.00019506,2]
[365162402,1749505865895,-490.0,0.00019506,2]